fUSD/lending_fUSD_20260506
["ID","MTS","AMOUNT","RATE_DAILY","PERIOD"]
[421699624,1778046746000,-500.0,0.000425,45]
[421699625,1778046746000,-30282.88215959,0.000425,120]
[421699626,1778046746000,-500.0,0.000425,45]
[421699635,1778046746000,-500.0,0.000425,120]
[421699629,1778046746000,-155.08872592,0.000425,25]
[421699628,1778046746000,-500.0,0.000425,45]
[421699630,1778046746000,-1042.16936173,0.000425,120]
[421699632,1778046746000,-300.36,0.000425,30]
[421699631,1778046746000,-405.8911,0.000425,120]
[421699633,1778046746000,-217.66576756,0.000425,120]
[421699634,1778046746000,-200.0,0.000425,10]
[421699636,1778046746000,-200.0,0.00042506,120]
[421699637,1778046746000,-259.133483,0.00042511,120]
[421699639,1778046746000,-259.133483,0.00042511,120]
[421699647,1778046746000,-1529.201548,0.00042511,120]
[421699638,1778046746000,-259.133483,0.00042511,120]
[421699640,1778046746000,-259.133483,0.00042511,120]
[421699641,1778046746000,-1920.959522,0.00042511,28]
[421699644,1778046746000,-1920.959522,0.00042511,28]
[421699642,1778046746000,-1920.959522,0.00042511,28]
[421699645,1778046746000,-1529.201548,0.00042511,120]
[421699646,1778046746000,-607.81341,0.00042511,120]
[421699643,1778046746000,-1920.959522,0.00042511,28]
[421699649,1778046746000,-607.81341,0.00042511,120]
[421699660,1778046746000,-104080.34183508,0.00042511,7]
[421699659,1778046746000,-211.592611,0.00042511,120]
[421699648,1778046746000,-243.725788,0.00042511,30]
[421699651,1778046746000,-243.725788,0.00042511,30]
[421699682,1778046746000,-205.440149,0.00042512,120]
[421699744,1778046746000,-400.729559,0.00042512,120]
[421699686,1778046746000,-205.440149,0.00042512,120]
[421699724,1778046746000,-649.209855,0.00042512,120]
[421699719,1778046746000,-649.209857,0.00042512,120]
[421699720,1778046746000,-269.120346,0.00042512,120]
[421699723,1778046746000,-400.729559,0.00042512,120]
[421699721,1778046746000,-400.729559,0.00042512,120]
[421699722,1778046746000,-649.209857,0.00042512,120]
[421699726,1778046746000,-269.120346,0.00042512,120]
[421699736,1778046746000,-269.120346,0.00042512,120]
[421699725,1778046746000,-269.120346,0.00042512,120]
[421699737,1778046746000,-151.0,0.00042512,120]
[421699729,1778046746000,-269.120346,0.00042512,120]
[421699733,1778046746000,-151.0,0.00042512,120]
[421699734,1778046746000,-400.729559,0.00042512,120]
[421699727,1778046746000,-400.729559,0.00042512,120]
[421699735,1778046746000,-151.0,0.00042512,120]
[421699731,1778046746000,-400.729559,0.00042512,120]
[421699728,1778046746000,-400.729559,0.00042512,120]
[421699732,1778046746000,-269.120346,0.00042512,120]
[421699730,1778046746000,-151.0,0.00042512,120]
[421699738,1778046746000,-269.120346,0.00042512,120]
[421699739,1778046746000,-400.729559,0.00042512,120]
[421699741,1778046746000,-400.729559,0.00042512,120]
[421699683,1778046746000,-205.440149,0.00042512,120]
[421699742,1778046746000,-151.0,0.00042512,120]
[421699743,1778046746000,-269.120343,0.00042512,120]
[421699745,1778046746000,-151.0,0.00042512,120]
[421699746,1778046746000,-400.729559,0.00042512,120]
[421699713,1778046746000,-269.120346,0.00042512,120]
[421699715,1778046746000,-400.729559,0.00042512,120]
[421699740,1778046746000,-269.120346,0.00042512,120]
[421699718,1778046746000,-400.729559,0.00042512,120]
[421699714,1778046746000,-269.120346,0.00042512,120]
[421699688,1778046746000,-205.440149,0.00042512,120]
[421699689,1778046746000,-205.440149,0.00042512,120]
[421699691,1778046746000,-205.440149,0.00042512,120]
[421699692,1778046746000,-205.440149,0.00042512,120]
[421699693,1778046746000,-205.440156,0.00042512,120]
[421699687,1778046746000,-205.440149,0.00042512,120]
[421699698,1778046746000,-649.209857,0.00042512,120]
[421699695,1778046746000,-151.0,0.00042512,120]
[421699694,1778046746000,-151.0,0.00042512,120]
[421699696,1778046746000,-153.6029,0.00042512,120]
[421699697,1778046746000,-649.209857,0.00042512,120]
[421699700,1778046746000,-649.209857,0.00042512,120]
[421699701,1778046746000,-649.209857,0.00042512,120]
[421699690,1778046746000,-205.440149,0.00042512,120]
[421699710,1778046746000,-269.120346,0.00042512,120]
[421699702,1778046746000,-649.209857,0.00042512,120]
[421699717,1778046746000,-269.120346,0.00042512,120]
[421699707,1778046746000,-649.209857,0.00042512,120]
[421699703,1778046746000,-649.209857,0.00042512,120]
[421699705,1778046746000,-649.209857,0.00042512,120]
[421699716,1778046746000,-649.209857,0.00042512,120]
[421699704,1778046746000,-269.120346,0.00042512,120]
[421699711,1778046746000,-649.209857,0.00042512,120]
[421699708,1778046746000,-269.120346,0.00042512,120]
[421699699,1778046746000,-649.209857,0.00042512,120]
[421699712,1778046746000,-649.209857,0.00042512,120]
[421699706,1778046746000,-269.120346,0.00042512,120]
[421699709,1778046746000,-649.209857,0.00042512,120]
[421699778,1778046747000,-151.0,0.00042512,60]
[421699784,1778046747000,-259.133483,0.00042512,120]
[421699786,1778046747000,-259.133483,0.00042512,120]
[421699783,1778046747000,-259.133483,0.00042512,120]
[421699782,1778046747000,-259.133483,0.00042512,120]
[421699780,1778046747000,-151.0,0.00042512,60]
[421699781,1778046747000,-153.405141,0.00042512,60]
[421699779,1778046747000,-151.0,0.00042512,60]
[421699785,1778046747000,-259.133483,0.00042512,120]
[421699776,1778046747000,-151.0,0.00042512,60]
[421699775,1778046747000,-151.0,0.00042512,60]
[421699796,1778046747000,-1920.959522,0.00042512,28]
[421699794,1778046747000,-1920.959522,0.00042512,28]
[421699795,1778046747000,-1920.959522,0.00042512,28]
[421699790,1778046747000,-259.133483,0.00042512,120]
[421699787,1778046747000,-259.133483,0.00042512,120]
[421699788,1778046747000,-259.133483,0.00042512,120]
[421699789,1778046747000,-259.133483,0.00042512,120]
[421699791,1778046747000,-259.133483,0.00042512,120]
[421699793,1778046747000,-259.133475,0.00042512,120]
[421699792,1778046747000,-259.133483,0.00042512,120]
[421699772,1778046747000,-151.0,0.00042512,120]
[421699777,1778046747000,-151.0,0.00042512,60]
[421699774,1778046747000,-151.0,0.00042512,120]
[421699753,1778046747000,-274.197896,0.00042512,120]
[421699769,1778046747000,-878.136391,0.00042512,60]
[421699747,1778046747000,-151.0,0.00042512,120]
[421699748,1778046747000,-151.0,0.00042512,120]
[421699760,1778046747000,-878.136391,0.00042512,60]
[421699750,1778046747000,-400.729559,0.00042512,120]
[421699761,1778046747000,-878.136391,0.00042512,60]
[421699751,1778046747000,-151.0,0.00042512,120]
[421699752,1778046747000,-400.729559,0.00042512,120]
[421699749,1778046747000,-400.729559,0.00042512,120]
[421699755,1778046747000,-878.136391,0.00042512,60]
[421699757,1778046747000,-878.136391,0.00042512,60]
[421699759,1778046747000,-878.136391,0.00042512,60]
[421699756,1778046747000,-878.136391,0.00042512,60]
[421699754,1778046747000,-400.729564,0.00042512,120]
[421699758,1778046747000,-878.136391,0.00042512,60]
[421699764,1778046747000,-878.136391,0.00042512,60]
[421699762,1778046747000,-878.136391,0.00042512,60]
[421699763,1778046747000,-878.136391,0.00042512,60]
[421699765,1778046747000,-878.136391,0.00042512,60]
[421699766,1778046747000,-878.136391,0.00042512,60]
[421699768,1778046747000,-878.136391,0.00042512,60]
[421699770,1778046747000,-878.136388,0.00042512,60]
[421699767,1778046747000,-878.136391,0.00042512,60]
[421699773,1778046747000,-151.0,0.00042512,120]
[421699771,1778046747000,-151.0,0.00042512,120]
[421699797,1778046747000,-1920.959522,0.00042512,28]
[421699808,1778046747000,-1529.201548,0.00042512,120]
[421699798,1778046747000,-1920.959522,0.00042512,28]
[421699826,1778046747000,-607.81341,0.00042512,120]
[421699830,1778046747000,-607.81341,0.00042512,120]
[421699827,1778046747000,-243.725788,0.00042512,30]
[421699829,1778046747000,-1529.201548,0.00042512,120]
[421699834,1778046747000,-243.725788,0.00042512,30]
[421699832,1778046747000,-243.725788,0.00042512,30]
[421699833,1778046747000,-1529.201539,0.00042512,120]
[421699841,1778046747000,-243.725781,0.00042512,30]
[421699842,1778046747000,-151.0,0.00042512,120]
[421699837,1778046747000,-607.81341,0.00042512,120]
[421699839,1778046747000,-243.725788,0.00042512,30]
[421699838,1778046747000,-607.813417,0.00042512,120]
[421699836,1778046747000,-243.725788,0.00042512,30]
[421699835,1778046747000,-607.81341,0.00042512,120]
[421699840,1778046747000,-243.725788,0.00042512,30]
[421699844,1778046747000,-151.0,0.00042512,120]
[421699848,1778046747000,-278.092369,0.00042512,120]
[421699850,1778046747000,-278.092369,0.00042512,120]
[421699846,1778046747000,-151.0,0.00042512,120]
[421699843,1778046747000,-151.0,0.00042512,120]
[421699847,1778046747000,-151.0,0.00042512,120]
[421699845,1778046747000,-151.0,0.00042512,120]
[421699849,1778046747000,-278.092369,0.00042512,120]
[421699825,1778046747000,-243.725788,0.00042512,30]
[421699831,1778046747000,-1529.201548,0.00042512,120]
[421699799,1778046747000,-1920.959522,0.00042512,28]
[421699823,1778046747000,-243.725788,0.00042512,30]
[421699822,1778046747000,-1529.201548,0.00042512,120]
[421699800,1778046747000,-1920.959522,0.00042512,28]
[421699801,1778046747000,-1920.959522,0.00042512,28]
[421699802,1778046747000,-1920.959522,0.00042512,28]
[421699804,1778046747000,-1920.959522,0.00042512,28]
[421699803,1778046747000,-1920.959522,0.00042512,28]
[421699805,1778046747000,-1920.95951806,0.00042512,28]
[421699807,1778046747000,-1529.201548,0.00042512,120]
[421699809,1778046747000,-607.81341,0.00042512,120]
[421699811,1778046747000,-1529.201548,0.00042512,120]
[421699810,1778046747000,-607.81341,0.00042512,120]
[421699806,1778046747000,-1529.201548,0.00042512,120]
[421699812,1778046747000,-607.81341,0.00042512,120]
[421699828,1778046747000,-607.81341,0.00042512,120]
[421699821,1778046747000,-607.81341,0.00042512,120]
[421699824,1778046747000,-1529.201548,0.00042512,120]
[421699820,1778046747000,-1529.201548,0.00042512,120]
[421699819,1778046747000,-607.81341,0.00042512,120]
[421699818,1778046747000,-607.81341,0.00042512,120]
[421699815,1778046747000,-1529.201548,0.00042512,120]
[421699816,1778046747000,-243.725788,0.00042512,30]
[421699814,1778046747000,-243.725788,0.00042512,30]
[421699813,1778046747000,-1529.201548,0.00042512,120]
[421699817,1778046747000,-243.725788,0.00042512,30]
[421699876,1778046748000,-151.0,0.00042512,30]
[421699875,1778046748000,-151.0,0.00042512,30]
[421699865,1778046748000,-151.0,0.00042512,30]
[421699867,1778046748000,-151.0,0.00042512,30]
[421699871,1778046748000,-151.0,0.00042512,30]
[421699872,1778046748000,-151.0,0.00042512,120]
[421699870,1778046748000,-151.0,0.00042512,30]
[421699873,1778046748000,-277.281901,0.00042512,120]
[421699874,1778046748000,-151.0,0.00042512,30]
[421699878,1778046748000,-151.0,0.00042512,120]
[421699868,1778046748000,-151.0,0.00042512,30]
[421699869,1778046748000,-151.0,0.00042512,30]
[421699866,1778046748000,-151.0,0.00042512,30]
[421699853,1778046748000,-278.092369,0.00042512,120]
[421699858,1778046748000,-278.092369,0.00042512,120]
[421699864,1778046748000,-151.0,0.00042512,30]
[421699857,1778046748000,-278.092369,0.00042512,120]
[421699862,1778046748000,-278.092369,0.00042512,120]
[421699860,1778046748000,-278.092369,0.00042512,120]
[421699863,1778046748000,-278.092364,0.00042512,120]
[421699861,1778046748000,-278.092369,0.00042512,120]
[421699856,1778046748000,-278.092369,0.00042512,120]
[421699854,1778046748000,-278.092369,0.00042512,120]
[421699855,1778046748000,-278.092369,0.00042512,120]
[421699881,1778046748000,-151.0,0.00042512,120]
[421699851,1778046748000,-278.092369,0.00042512,120]
[421699852,1778046748000,-278.092369,0.00042512,120]
[421699859,1778046748000,-278.092369,0.00042512,120]
[421699886,1778046748000,-151.0,0.00042512,120]
[421699877,1778046748000,-220.59085,0.00042512,30]
[421699880,1778046748000,-151.0,0.00042512,120]
[421699884,1778046748000,-151.0,0.00042512,120]
[421699911,1778046748000,-1127.99615857,0.00027397,10]
[421699909,1778046748000,-3402.44500968,0.00027397,10]
[421699910,1778046748000,-384.00384143,0.00027397,10]
[421699908,1778046748000,-8100.0,0.00027397,10]
[421699907,1778046748000,-7599.132365,0.00027397,10]
[421699906,1778046748000,-298.267135,0.00022799,14]
[421699904,1778046748000,-457.68,0.00027397,10]
[421699905,1778046748000,-2474.66661616,0.00027397,10]
[421699903,1778046748000,-0.04183587,0.00028983,2]
[421699901,1778046748000,396.425018,0.00022799,120]
[421699902,1778046748000,-500.0,0.00015281,2]
[421699897,1778046748000,-1632.07156104,0.00042512,30]
[421699900,1778046748000,-826853.20125117,0.00042512,30]
[421699899,1778046748000,-348926.14872092,0.00042512,48]
[421699890,1778046748000,-151.0,0.00042512,120]
[421699898,1778046748000,-1632.07156104,0.00042512,30]
[421699882,1778046748000,-151.0,0.00042512,120]
[421699879,1778046748000,-151.0,0.00042512,120]
[421699889,1778046748000,-151.0,0.00042512,120]
[421699885,1778046748000,-151.0,0.00042512,120]
[421699883,1778046748000,-151.0,0.00042512,120]
[421699888,1778046748000,-151.0,0.00042512,120]
[421699891,1778046748000,-221.589595,0.00042512,120]
[421699892,1778046748000,-937.0,0.00042512,120]
[421699893,1778046748000,-289.0,0.00042512,120]
[421699895,1778046748000,-151.0,0.00042512,120]
[421699896,1778046748000,-154.0,0.00042512,120]
[421699887,1778046748000,-151.0,0.00042512,120]
[421699894,1778046748000,-153.0,0.00042512,120]
[421699912,1778046749000,150.0,0.00014247,21]
[421699913,1778046760000,-800.0,0.000127,4]
[421699916,1778046760000,625.856636,0.0002254,120]
[421699917,1778046760000,-1263.92,0.000128,4]
[421699915,1778046760000,3928.693556,7.945e-05,2]
[421699914,1778046760000,-439.8809442,0.00013199,2]
[421699919,1778046761000,300.483803,0.00022017,120]
[421699921,1778046761000,-1263.92,0.000129,4]
[421699920,1778046761000,-436.08,0.000128,4]
[421699930,1778046762000,-1700.0,0.00013127,2]
[421699929,1778046762000,-773.726,0.00013127,2]
[421699928,1778046762000,-416.57,0.00013014,2]
[421699926,1778046762000,-304.359,0.00012936,2]
[421699927,1778046762000,-205.345,0.00012936,2]
[421699923,1778046762000,-1236.08,0.000129,4]
[421699924,1778046762000,-463.92,0.00012936,2]
[421699945,1778046860000,-800.0,0.00012997,2]
[421699946,1778046861000,-9600.6283824,0.00012997,2]
[421699947,1778046861000,-399.3816176,0.000131,2]
[421699962,1778046862000,-500.0,0.00013107,2]
[421699965,1778046862000,-151.0,0.00013107,2]
[421699966,1778046862000,-500.0,0.00013107,2]
[421699963,1778046862000,-151.0,0.00013107,2]
[421699974,1778046862000,-151.0,0.00013107,2]
[421699969,1778046862000,-300.0,0.00012996,2]
[421699970,1778046862000,-110.6083824,0.00013107,2]
[421699971,1778046862000,-151.0,0.00013107,2]
[421699972,1778046862000,-500.0,0.00013107,2]
[421699964,1778046862000,-500.0,0.00013107,2]
[421699967,1778046862000,-151.0,0.00013107,2]
[421699968,1778046862000,-389.3916176,0.00013107,2]
[421699973,1778046862000,-500.0,0.00013107,2]
[421699951,1778046862000,-151.0,0.00013107,2]
[421699957,1778046862000,-151.0,0.00013107,2]
[421699952,1778046862000,-500.0,0.00013107,2]
[421699949,1778046862000,-2500.0,0.000131,2]
[421699955,1778046862000,-151.0,0.00013107,2]
[421699956,1778046862000,-500.0,0.00013107,2]
[421699950,1778046862000,-151.0,0.00013107,2]
[421699953,1778046862000,-151.0,0.00013107,2]
[421699960,1778046862000,-500.0,0.00013107,2]
[421699961,1778046862000,-151.0,0.00013107,2]
[421699959,1778046862000,-151.0,0.00013107,2]
[421699948,1778046862000,-1600.6183824,0.000131,2]
[421699958,1778046862000,-500.0,0.00013107,2]
[421699954,1778046862000,-500.0,0.00013107,2]
[421699976,1778046862000,-151.0,0.00013107,2]
[421699980,1778046862000,-151.0,0.00013107,2]
[421700002,1778046862000,469.461657,7.945e-05,2]
[421699998,1778046862000,-500.0,0.00013107,2]
[421699999,1778046862000,-491.18452528,0.00013107,2]
[421700001,1778046862000,-347.04116343,0.00013127,2]
[421700000,1778046862000,-2080.17592889,0.00013107,2]
[421699987,1778046862000,-151.0,0.00013107,2]
[421699993,1778046862000,-151.0,0.00013107,2]
[421699995,1778046862000,-151.0,0.00013107,2]
[421699992,1778046862000,-500.0,0.00013107,2]
[421699991,1778046862000,-151.0,0.00013107,2]
[421699996,1778046862000,-500.0,0.00013107,2]
[421699994,1778046862000,-500.0,0.00013107,2]
[421699997,1778046862000,-500.0,0.00013107,2]
[421699988,1778046862000,-151.0,0.00013107,2]
[421699989,1778046862000,-151.0,0.00013107,2]
[421699984,1778046862000,-151.0,0.00013107,2]
[421699981,1778046862000,-151.0,0.00013107,2]
[421699977,1778046862000,-151.0,0.00013107,2]
[421699978,1778046862000,-151.0,0.00013107,2]
[421699975,1778046862000,-151.0,0.00013107,2]
[421699979,1778046862000,-151.0,0.00013107,2]
[421699983,1778046862000,-151.0,0.00013107,2]
[421699986,1778046862000,-151.0,0.00013107,2]
[421699990,1778046862000,-151.0,0.00013107,2]
[421699985,1778046862000,-151.0,0.00013107,2]
[421699982,1778046862000,-151.0,0.00013107,2]
[421700003,1778046863000,-2035.37698044,0.00013127,2]
[421700005,1778046863000,-7814.63301956,0.000132,2]
[421700007,1778046863000,-10000.01,0.00013066,2]
[421700006,1778046863000,-10000.01,0.00013066,2]
[421700004,1778046863000,-150.0,0.00013149,2]
[421700011,1778046864000,-10000.01,0.00013066,2]
[421700010,1778046864000,150.0,0.00013065,2]
[421700009,1778046864000,-10000.01,0.00013066,2]
[421700008,1778046864000,-10000.01,0.00013066,2]
[421700013,1778046865000,250.0,0.00010869,2]
[421700014,1778046890000,150.0,0.00010726,2]
[421700015,1778046893000,312.928318,0.00028368,120]
[421700016,1778046897000,159.17631841,0.00013408,21]
[421700017,1778046897000,290.55978743,0.00013408,21]
[421700018,1778046901000,153.12137068,0.00013001,2]
[421700020,1778046901000,1200.0,0.00013065,2]
[421700019,1778046901000,300.0,0.00013065,2]
[421700024,1778046905000,319.07905074,0.00013065,2]
[421700023,1778046905000,500.0,0.00013065,2]
[421700021,1778046905000,500.0,0.00013065,2]
[421700022,1778046905000,468.24146958,0.00013065,2]
[421700031,1778046906000,500.0,0.00013065,2]
[421700029,1778046906000,557.52237219,0.00013065,2]
[421700028,1778046906000,500.0,0.00013065,2]
[421700027,1778046906000,500.0,0.00013065,2]
[421700026,1778046906000,500.0,0.00013065,2]
[421700025,1778046906000,500.0,0.00013065,2]
[421700030,1778046906000,500.0,0.00013065,2]
[421700034,1778046911000,271.36594458,0.00013065,2]
[421700032,1778046911000,279.79599144,0.00013065,2]
[421700033,1778046911000,500.0,0.00013065,2]
[421700035,1778046911000,500.0,0.00013065,2]
[421700037,1778046911000,500.0,0.00013065,2]
[421700038,1778046911000,300.88380079,0.00013065,2]
[421700039,1778046911000,199.11619921,0.00013065,2]
[421700040,1778046911000,500.0,0.00013065,2]
[421700036,1778046911000,500.0,0.00013065,2]
[421700042,1778046912000,500.0,0.00013065,2]
[421700041,1778046912000,500.0,0.00013065,2]
[421700043,1778046920000,2737.848383,0.00013001,2]
[421700044,1778046925000,500.0,0.00013065,2]
[421700046,1778046931000,674.55398221,0.00012966,2]
[421700045,1778046931000,5063.04541779,0.00012966,2]
[421700047,1778046932000,5017.07148103,0.00013,2]
[421700048,1778046935000,500.0,0.00013065,2]
[421700049,1778046935000,534.37169858,0.00013,2]
[421700050,1778046937000,2500.0,0.00012966,2]
[421700051,1778046948000,-10000.0,0.00013066,2]
[421700054,1778046951000,-10000.0,0.00013066,2]
[421700053,1778046951000,-10000.0,0.00013066,2]
[421700052,1778046951000,-10000.0,0.00013066,2]
[421700055,1778046952000,-10000.0,0.00013066,2]
[421700056,1778046953000,-10000.0,0.00013066,2]
[421700058,1778046953000,-10000.0,0.00013066,2]
[421700057,1778046953000,500.0,0.00013065,2]
[421700059,1778046954000,-10000.0,0.00013066,2]
[421700061,1778046954000,-10000.0,0.00013066,2]
[421700060,1778046954000,-10000.0,0.00013066,2]
[421700063,1778046955000,-10000.0,0.00013066,2]
[421700062,1778046955000,-10000.0,0.00013066,2]
[421700065,1778046956000,-10000.0,0.00013066,2]
[421700064,1778046956000,-10000.0,0.00013066,2]
[421700068,1778046957000,-10000.0,0.00013066,2]
[421700067,1778046957000,-10000.0,0.00013066,2]
[421700066,1778046957000,-10000.0,0.00013066,2]
[421700070,1778046958000,-10000.0,0.00013066,2]
[421700069,1778046958000,-10000.0,0.00013066,2]
[421700073,1778046959000,-10000.0,0.00013066,2]
[421700072,1778046959000,-10000.0,0.00013066,2]
[421700071,1778046959000,-10000.0,0.00013066,2]
[421700075,1778046960000,-10000.0,0.00013066,2]
[421700074,1778046960000,-10000.0,0.00013066,2]
[421700077,1778046961000,-10000.0,0.00013066,2]
[421700076,1778046961000,-10000.0,0.00013066,2]
[421700081,1778046962000,-10000.0,0.00013066,2]
[421700080,1778046962000,35.46909693,0.00013065,2]
[421700079,1778046962000,274.01283818,0.00013065,2]
[421700078,1778046962000,-10000.0,0.00013066,2]
[421700084,1778046963000,-10000.0,0.00013066,2]
[421700083,1778046963000,-10000.0,0.00013066,2]
[421700082,1778046963000,-10000.0,0.00013066,2]
[421700085,1778046964000,-10000.0,0.00013066,2]
[421700086,1778046964000,-10000.0,0.00013066,2]
[421700087,1778046964000,-10000.0,0.00013066,2]
[421700088,1778046965000,-10000.0,0.00013066,2]
[421700089,1778046966000,-10000.0,0.00013066,2]
[421700090,1778046967000,-10000.0,0.00013066,2]
[421700091,1778046971000,500.0,0.00013065,2]
[421700092,1778046973000,5012.50772493,0.00012989,2]
[421700093,1778046980000,-6000.0,0.00013066,2]
[421700095,1778047003000,10000.01,0.0001305,2]
[421700096,1778047003000,10000.01,0.0001305,2]
[421700094,1778047003000,4452.03317814,0.0001305,2]
[421700101,1778047004000,10000.01,0.0001305,2]
[421700099,1778047004000,10000.01,0.0001305,2]
[421700097,1778047004000,10000.01,0.0001305,2]
[421700098,1778047004000,10000.01,0.0001305,2]
[421700100,1778047004000,10000.01,0.0001305,2]
[421700102,1778047016000,-10000.01,0.0001305,2]
[421700103,1778047229000,254.68210943,0.00012361,21]
[421700104,1778047229000,464.89565989,0.00012361,21]
[421700107,1778047229000,254.68210943,0.000126,21]
[421700105,1778047229000,254.68210943,0.00012493,21]
[421700106,1778047229000,464.89565989,0.00012493,21]
[421700110,1778047230000,464.89565989,0.000127,21]
[421700108,1778047230000,464.89565989,0.000126,21]
[421700109,1778047230000,254.68210943,0.000127,21]
[421700113,1778047342000,524.50877639,0.00015,7]
[421700114,1778047455000,-151.85,0.00012136,2]
[421700115,1778047455000,-1200.0,0.0001236,2]
[421700117,1778047455000,-5448.15,0.00012361,2]
[421700116,1778047455000,-300.0,0.0001236,2]
[421700119,1778047456000,-7460.44,0.00012361,2]
[421700118,1778047456000,-10000.01,0.00012361,2]
[421700120,1778047460000,-300.0,0.0001236,2]
[421700121,1778047462000,-151.85,0.00012049,2]
[421700127,1778047628000,-151.85,0.00012024,2]
[421700128,1778047629000,-151.85,0.00012024,2]
[421700129,1778047630000,-151.85,0.00012024,2]
[421700131,1778047630000,-151.85,0.00012024,2]
[421700130,1778047630000,381.86729159,0.00027399,120]
[421700136,1778047631000,-151.85,0.00012049,2]
[421700135,1778047631000,-87.2,0.00012049,2]
[421700134,1778047631000,-64.65,0.00012024,2]
[421700132,1778047631000,-150.0,0.00012011,2]
[421700133,1778047631000,-1.85,0.00012024,2]
[421700139,1778047632000,-905.4,0.00012049,2]
[421700138,1778047632000,-151.85,0.00012049,2]
[421700137,1778047632000,-151.85,0.00012049,2]
[421700141,1778047635000,-162.75,0.00012329,2]
[421700140,1778047635000,152.0,0.00011726,2]
[421700142,1778047635000,500.0,0.00027399,120]
[421700143,1778047635000,500.0,0.00030136,120]
[421700146,1778047636000,150.0,0.00011737,2]
[421700145,1778047636000,150.0,0.00011737,2]
[421700144,1778047636000,150.0,0.00011737,2]
[421700150,1778047637000,150.0,0.00011737,2]
[421700149,1778047637000,150.0,0.00011737,2]
[421700148,1778047637000,150.0,0.00011737,2]
[421700147,1778047637000,157.37,0.00011955,2]
[421700151,1778047638000,-150.0,0.00012172,2]
[421700153,1778047638000,1089.63,6.256e-05,2]
[421700152,1778047638000,1089.63,5.943e-05,2]
[421700154,1778047638000,322.74,6.569e-05,2]
[421700156,1778047638000,1089.63,6.882e-05,2]
[421700155,1778047638000,766.89,6.569e-05,2]
[421700157,1778047638000,1089.63,7.195e-05,2]
[421700159,1778047638000,1089.63,7.82e-05,2]
[421700158,1778047638000,1089.63,7.508e-05,2]
[421700160,1778047638000,1089.63,8.133e-05,2]
[421700161,1778047639000,1089.63,8.446e-05,2]
[421700162,1778047639000,1089.63,8.759e-05,2]
[421700163,1778047639000,396.34,9.072e-05,2]
[421700164,1778047639000,693.29,9.072e-05,2]
[421700165,1778047639000,1089.63,9.385e-05,2]
[421700166,1778047639000,1089.63,9.697e-05,2]
[421700167,1778047639000,1089.63,0.0001001,2]
[421700168,1778047639000,1089.63,0.00010323,2]
[421700169,1778047639000,1089.63,0.00010636,2]
[421700172,1778047639000,1089.63,0.00011574,2]
[421700171,1778047639000,1089.63,0.00011261,2]
[421700174,1778047639000,499.95,0.00011887,2]
[421700173,1778047639000,589.68,0.00011887,2]
[421700175,1778047639000,1281.5207061,0.00027397,120]
[421700177,1778047639000,150.0,0.00012024,2]
[421700176,1778047639000,185.0,8.758e-05,2]
[421700178,1778047639000,150.0,0.0001097,2]
[421700170,1778047639000,1089.63,0.00010949,2]
[421700179,1778047640000,9548.89,0.00030137,120]
[421700183,1778047767000,-150.0,0.00012247,2]